Cogmind - Beta 12 @@@ ROGUE MODE // 2023.10.21 @ 21:47:49 Player: Hilbert Result: Destroyed by G-47 Trooper with Particle Gun Performance ------------- Evolutions (2) 1000 Regions Visited (6) 1200 Robots Destroyed (5) 25 Value Destroyed (231) 231 Prototype IDs (0) 0 Alien Tech Used (0) 0 Bonus (300) 300 TOTAL SCORE: 2756 Bonus ------- Aligned with FarCom 300 Cogmind --------- Core Integrity 0/550 Matter 154/300 Energy 98/100 System Corruption 0% Temperature Cool (37) Movement Core (50) Location -8/Materials Parts ------- > --- POWER (1) -------- (None) > --- PROPULSION (4) --- (None) > --- UTILITY (4) ------ (None) > --- WEAPON (2) ------- (None) > --- INVENTORY (5) ---- Medium Treads Gravmag System Gravmag System Skeleton Box Light Assault Rifle Peak State ------------ > --- POWER ------------ (None) > --- PROPULSION ------- Light Treads Medium Treads Aluminum Leg Aluminum Leg > --- UTILITY ---------- Heat Sink Small Storage Unit Improved Melee Analysis Suite > --- WEAPON ----------- Small Laser Grenade Launcher > --- INVENTORY -------- Medium Treads Skeleton Box Light Assault Rifle [Rating: 16] Favorites ----------- Power Ion Engine Engine Ion Engine Propulsion Aluminum Leg Treads Light Treads Leg Aluminum Leg Wheel Wheel Utility Small Storage Unit Device Heat Sink Storage Small Storage Unit Processor Improved Melee Analysis Suite Weapon Grenade Launcher Energy Gun Small Laser Ballistic Gun Light Assault Rifle Launcher Grenade Launcher Build | -11 -10 -9 -9 -9 -8 -8 ------- Run | Jun Mat Mat Min Exi Min Mat Slots Evolved 4 | . . 2 . . . 2 Power . | . . . . . . . Propulsion 2 | . . 1 . . . 1 Utility 2 | . . 1 . . . 1 Weapon . | . . . . . . . Parts Attached 14 | . 4 1 6 . . 3 Power 1 | . . . 1 . . . Engine 1 | . . . 1 . . . Core . | . . . . . . . Reactor . | . . . . . . . Propulsion 7 | . 2 1 3 . . 1 Treads 3 | . 1 . 1 . . 1 Leg 2 | . . . 2 . . . Wheel 2 | . 1 1 . . . . Hover . | . . . . . . . Flight . | . . . . . . . Utility 2 | . 1 . . . . 1 Device 1 | . 1 . . . . . Storage . | . . . . . . . Processor 1 | . . . . . . 1 Hackware . | . . . . . . . Protection . | . . . . . . . Artifact . | . . . . . . . Weapon 4 | . 1 . 2 . . 1 Energy Gun 1 | . . . 1 . . . Energy Cannon . | . . . . . . . Ballistic Gun 2 | . 1 . . . . 1 Ballistic Cannon . | . . . . . . . Launcher 1 | . . . 1 . . . Special Weapon . | . . . . . . . Impact Weapon . | . . . . . . . Slashing Weapon . | . . . . . . . Piercing Weapon . | . . . . . . . Special Melee Weapon . | . . . . . . . Unidentified Prototypes . | . . . . . . . Parts Lost 13 | . 1 . 6 . . 6 Power 2 | . . . 2 . . . Propulsion 7 | . . . 3 . . 4 Utility . | . . . . . . . Weapon 4 | . 1 . 1 . . 2 Highest Loss Streak 6 | . 1 . 6 . . 6 To Critical Strikes . | . . . . . . . Average Slot Usage (%) 76 | . 86 88 78 77 77 61 Engine 3 | . 14 11 4 . . . Treads 12 | . 12 11 10 11 11 15 Leg 13 | . 2 . 11 22 22 13 Wheel 4 | . 12 22 9 . . . Device 8 | . 1 11 11 11 11 6 Storage 10 | . 14 11 11 11 11 6 Processor 1 | . . . . . . 6 Energy Gun 8 | . 9 . 6 11 11 6 Ballistic Gun 5 | . 18 22 7 . . . Launcher 6 | . . . 8 11 11 6 Naked Turns 32 | . . . . . . 32 Heaviest Build 15 | 13 13 13 15 10 10 10 Greatest Support 48 | 20 20 20 20 20 20 48 Greatest Overweight (x) 1 | . 1 . 1 . . . Average Overweight (x) . | . . . . . . . Largest Inventory Capacity 8 | 8 8 8 8 8 8 8 Average Capacity 7 | 8 8 8 8 8 8 7 Most Carried 7 | 6 7 6 6 2 2 5 Average Carried 3 | 6 6 6 3 1 2 4 Final Capacity 8 | 8 8 8 8 8 8 5 Final Carried 7 | 6 7 6 1 2 2 5 Class Distribution -------------------- 100% | Mutant Dominant Class ---------------- Mutant | -10/Materials Mutant | -9/Materials Mutant | -9/Mines Mutant | -9/Exiles Mutant | -8/Mines Mutant | -8/Materials Resources | -11 -10 -9 -9 -9 -8 -8 ----------- Run | Jun Mat Mat Min Exi Min Mat Matter Collected 275 | 189 71 . 15 . . . Remotely . | . . . . . . . Salvage Created 165 | . 142 . 23 . . . Parts 4 | . 4 . . . . . Haulers Intercepted . | . . . . . . . Recyclers Shooed . | . . . . . . . Parts Field Recycled . | . . . . . . . Retrieved Matter . | . . . . . . . Parts Self-Destructed . | . . . . . . . Prevented . | . . . . . . . Kills | -11 -10 -9 -9 -9 -8 -8 ------- Run | Jun Mat Mat Min Exi Min Mat Combat Hostiles Destroyed 8 | . 3 . 5 . . . Guns 5 | . 3 . 2 . . . AOE 3 | . . . 3 . . . Classes Destroyed 3 | . 1 . 2 . . . Grunt 3 | . 3 . . . . . Demolisher 2 | . . . 2 . . . Assembled 3 | . . . 3 . . . Best Kill Streak 3 | . 1 . 3 . . . Combat Bots Only 3 | . 1 . 3 . . . Max Kills in Single Turn 2 | . 1 . 2 . . . Gunslinging . | . . . . . . . Exploded 2 | . . . 2 . . . Melee . | . . . . . . . Uniques/NPCs Destroyed . | . . . . . . . Combat | -11 -10 -9 -9 -9 -8 -8 -------- Run | Jun Mat Mat Min Exi Min Mat Damage Taken 2119 | . 259 55 667 . . 1138 Core 797 | . 51 10 177 . . 559 Absorbed by Shields . | . . . . . . . Core Remaining (%) 77 | 100 79 . . . 53 . Volleys Fired 42 | . 20 . 10 . . 12 Largest 2 | . 2 . 2 . . 2 Hottest 70 | . 60 . 70 . . 70 Shots Fired 70 | . 38 . 19 . . 13 Gun 59 | . 38 . 9 . . 12 Cannon . | . . . . . . . Launcher 11 | . . . 10 . . 1 Special . | . . . . . . . Kinetic 36 | . 25 . 5 . . 6 Thermal 10 | . . . 4 . . 6 Explosive 11 | . . . 10 . . 1 Electromagnetic 13 | . 13 . . . . . Robot Hit Streak 9 | . 9 . 5 . . 5 Robot Miss Streak 3 | . 3 . 1 . . 2 Penetration Max . | . . . . . . . Secondary Targets . | . . . . . . . Shots Hit Robots 50 | . 30 . 12 . . 8 Core Hits 30 | . 8 . 18 . . 4 Critical Kills . | . . . . . . . Critical Parts Destroyed . | . . . . . . . Critical Strikes . | . . . . . . . Melee Attacks . | . . . . . . . Impact . | . . . . . . . Slashing . | . . . . . . . Piercing . | . . . . . . . Sneak Attacks . | . . . . . . . Combat Hostiles . | . . . . . . . Follow-up Attacks . | . . . . . . . Damage Inflicted 932 | . 300 . 478 . . 154 Guns 449 | . 300 . 73 . . 76 Cannons . | . . . . . . . Explosions 483 | . . . 405 . . 78 Melee . | . . . . . . . Ramming . | . . . . . . . Kinetic 204 | . 145 . 28 . . 31 Thermal 90 | . . . 45 . . 45 Explosive 483 | . . . 405 . . 78 Electromagnetic 155 | . 155 . . . . . Impact . | . . . . . . . Slashing . | . . . . . . . Piercing . | . . . . . . . Highest Corruption . | . . . . . . . Average Corruption . | . . . . . . . Corruption Purged . | . . . . . . . Corruption Blocked . | . . . . . . . Overload Shots . | . . . . . . . Overflow Damage . | . . . . . . . Projectiles . | . . . . . . . Explosions . | . . . . . . . Melee . | . . . . . . . Knockbacks . | . . . . . . . Impact . | . . . . . . . Kinetic . | . . . . . . . Secondary . | . . . . . . . Self-Inflicted Damage 122 | . . . 122 . . . Shots 7 | . . . 7 . . . Rammed . | . . . . . . . Targets Rammed . | . . . . . . . Kicked . | . . . . . . . Crushed . | . . . . . . . Highest Temperature 153 | . 153 . . . . 23 Average Temperature 73 | . 75 . . . . 16 Received Heat Transfer 741 | . 144 30 . . . 567 Siege Activations . | . . . . . . . Robots Corrupted . | . . . . . . . Combat Hostiles . | . . . . . . . Parts Fried 1 | . 1 . . . . . Impact Corruptions . | . . . . . . . Robots Melted . | . . . . . . . Combat Hostiles . | . . . . . . . Parts Melted . | . . . . . . . Heat Transferred 200 | . . . 100 . . 100 Parts Sabotaged . | . . . . . . . Parts Stolen . | . . . . . . . Parts Stripped . | . . . . . . . Power Chain Reactions . | . . . . . . . Missiles Intercepted . | . . . . . . . Alert | -11 -10 -9 -9 -9 -8 -8 ------- Run | Jun Mat Mat Min Exi Min Mat Peak Influence 85 | . 85 35 51 . . 30 Initial 35 | . . 35 13 . . . Average 16 | . 24 35 37 . . 2 Maximum Alert Level . | . . . . . . . Low Security (%) 100 | 100 100 100 100 . 100 100 Level 1 . | . . . . . . . Level 2 . | . . . . . . . Level 3 . | . . . . . . . Level 4 . | . . . . . . . Level 5 . | . . . . . . . High Security . | . . . . . . . Max Security . | . . . . . . . Squads Dispatched 4 | . 1 1 . . . 2 Investigation 1 | . 1 . . . . . Extermination . | . . . . . . . Reinforcement 3 | . . 1 . . . 2 Assault . | . . . . . . . Garrison . | . . . . . . . Intercept . | . . . . . . . Searches Triggered . | . . . . . . . Construction Impeded . | . . . . . . . Haulers Reinforced . | . . . . . . . Active Scanning Responses . | . . . . . . . Cargo Convoy Interrupts . | . . . . . . . Stealth | -11 -10 -9 -9 -9 -8 -8 --------- Run | Jun Mat Mat Min Exi Min Mat Distress Signals . | . . . . . . . Communications Jammed . | . . . . . . . Distress Signals . | . . . . . . . Times Spotted 35 | . 4 4 9 . . 18 Peak Tracking Total 14 | . 2 3 6 . . 14 Tactical Retreats 1 | . 1 . . . . . Traps | -11 -10 -9 -9 -9 -8 -8 ------- Run | Jun Mat Mat Min Exi Min Mat Traps Triggered 1 | . 1 . . . . . Indirectly . | . . . . . . . Trap Hack Attempts . | . . . . . . . Triggered . | . . . . . . . Disarmed . | . . . . . . . Reprogrammed . | . . . . . . . Reused . | . . . . . . . Traps Extracted . | . . . . . . . Installed . | . . . . . . . Triggered . | . . . . . . . Machines | -11 -10 -9 -9 -9 -8 -8 ---------- Run | Jun Mat Mat Min Exi Min Mat Machines Disabled 1 | . . . . . . 1 Max in Single Turn 1 | . . . . . . 1 Machines Repaired . | . . . . . . . Machines Sabotaged . | . . . . . . . Overloaded Fab Kills . | . . . . . . . Hacking | -11 -10 -9 -9 -9 -8 -8 --------- Run | Jun Mat Mat Min Exi Min Mat Machines Accessed . | . . . . . . . Terminals . | . . . . . . . Fabricators . | . . . . . . . Repair Stations . | . . . . . . . Recycling Units . | . . . . . . . Scanalyzers . | . . . . . . . Garrison Access . | . . . . . . . Total Hacks . | . . . . . . . Successful . | . . . . . . . Failed . | . . . . . . . Catastrophic . | . . . . . . . Database Lockouts . | . . . . . . . Manual 2 | . . . . 2 . . Terminals . | . . . . . . . Fabricators . | . . . . . . . Repair Stations . | . . . . . . . Recycling Units . | . . . . . . . Scanalyzers . | . . . . . . . Garrison Access . | . . . . . . . Terminal Hacks . | . . . . . . . Fabricator Hacks . | . . . . . . . Repair Station Hacks . | . . . . . . . Recycling Unit Hacks . | . . . . . . . Scanalyzer . | . . . . . . . Garrison Access Hacks . | . . . . . . . Unauthorized Hacks . | . . . . . . . Terminals . | . . . . . . . Fabricators . | . . . . . . . Repair Stations . | . . . . . . . Recycling Units . | . . . . . . . Scanalyzers . | . . . . . . . Garrison Access . | . . . . . . . Data Cores Recovered . | . . . . . . . Used . | . . . . . . . Hacking Detections . | . . . . . . . Full Trace Events . | . . . . . . . Feedback Events . | . . . . . . . Feedback Blocked . | . . . . . . . Robot Schematics Acquired . | . . . . . . . Robots Built . | . . . . . . . Authchips . | . . . . . . . Time . | . . . . . . . Total Robot Build Rating . | . . . . . . . Part Schematics Acquired . | . . . . . . . Parts Built . | . . . . . . . Authchips . | . . . . . . . Time . | . . . . . . . Total Part Build Rating . | . . . . . . . Parts Repaired . | . . . . . . . Time . | . . . . . . . Parts Recycled . | . . . . . . . Recycled Matter . | . . . . . . . Retrieved Matter . | . . . . . . . Retrieved Components . | . . . . . . . Parts Scanalyzed . | . . . . . . . Part Schematics Acquired . | . . . . . . . Parts Damaged . | . . . . . . . Bothacking | -11 -10 -9 -9 -9 -8 -8 ------------ Run | Jun Mat Mat Min Exi Min Mat Used RIF Installer . | . . . . . . . Robots Hacked . | . . . . . . . Non-combat . | . . . . . . . Combat . | . . . . . . . Robot Hacks Applied . | . . . . . . . Relay Couplers Released . | . . . . . . . Fabnet Peak Effective % . | . . . . . . . Robots Rewired . | . . . . . . . Allies Hacked . | . . . . . . . Hacks Repelled . | . . . . . . . Allies | -11 -10 -9 -9 -9 -8 -8 -------- Run | Jun Mat Mat Min Exi Min Mat Total Allies . | . . . . . . . Largest Group . | . . . . . . . Highest-Rated Group . | . . . . . . . Highest-Rated Ally . | . . . . . . . Total Orders . | . . . . . . . Ally Attacks . | . . . . . . . Total Damage . | . . . . . . . Kills . | . . . . . . . Allies Corrupted . | . . . . . . . Allies Melted . | . . . . . . . Intel | -11 -10 -9 -9 -9 -8 -8 ------- Run | Jun Mat Mat Min Exi Min Mat Robot Analysis Total . | . . . . . . . Derelict Logs Recovered 1 | . . . 1 . . . Drone Launches . | . . . . . . . Drone Recoveries . | . . . . . . . Exploration | -11 -10 -9 -9 -9 -8 -8 ------------- Run | Jun Mat Mat Min Exi Min Mat Turns Passed 1247 | 12 231 65 198 277 219 245 Spaces Moved 1002 | 11 165 80 162 230 183 171 Core 131 | . . . . . . 131 Treads 3 | . . . 1 . . 2 Legs 560 | 11 13 . 85 230 183 38 Wheels 308 | . 152 80 76 . . . Hover . | . . . . . . . Flight . | . . . . . . . Fastest Speed 50 | 120 95 80 80 120 120 50 Average Speed 100 | 120 96 80 101 120 120 66 Slowest Speed 160 | 120 120 80 160 120 120 160 Overloaded Moves . | . . . . . . . Propulsion Burnouts . | . . . . . . . Robots Hopped . | . . . . . . . Cave-ins Triggered . | . . . . . . . Exploration Rate (%) 32 | 2 32 17 37 62 62 18 Regions Visited 6 Branch Regions 3 Pre-discovered Areas 1 | . . . 1 . . . Known Exits Taken . | . . . . . . . Unknown Exits Taken 6 | 1 1 1 1 1 1 . Scrap Searched 1 | . . . 1 . . . Spaces Dug . | . . . . . . . Terrain Destroyed 70 | . . . 70 . . . Melee . | . . . . . . . Projectile . | . . . . . . . AOE 70 | . . . 70 . . . Terrain Rammed . | . . . . . . . Walls Destroyed . | . . . . . . . Machines Disabled . | . . . . . . . Actions | -11 -10 -9 -9 -9 -8 -8 --------- Run | Jun Mat Mat Min Exi Min Mat Total 1172 | 10 201 80 177 231 182 291 Wait 109 | . 11 . . . . 98 Move 996 | 10 164 79 161 229 182 171 Hop . | . . . . . . . Pick Up 6 | . 2 . . 1 . 3 Fast Attach 3 | . 1 . . . . 2 Attach 8 | . 1 1 5 . . 1 Detach 2 | . . . . . . 2 Swap 3 | . 2 . 1 . . . Drop 2 | . . . . . . 2 Fire 42 | . 20 . 10 . . 12 Melee . | . . . . . . . Ram . | . . . . . . . Kick . | . . . . . . . Crush . | . . . . . . . Escape Stasis . | . . . . . . . Rewire 1 | . . . . 1 . . Trap . | . . . . . . . Miscellaneous . | . . . . . . . Route ------- -11/Junkyard -10/Materials -9/Materials -9/Mines -9/Exiles -8/Mines -8/Materials (discovered 1 exit: Fac) History --------- Turn | Location | Event 1 | -11/Junkyard | Discovered new exit (range 1) 13 | -11/Junkyard | Entered Materials 240 | -10/Materials | Discovered new exit (range 5) 244 | -10/Materials | Entered another Materials area 244 | -9/Materials | Evolved 2 slots: Propulsion x1, Utility x1 295 | -9/Materials | Discovered new exit (range 16) 303 | -9/Materials | Build established: Mutant 309 | -9/Materials | Entered Mines 310 | -9/Mines | Learned location of Storage (-8) 320 | -9/Mines | Learned 2 Materials zone layouts 341 | -9/Mines | Assembled infested the area 413 | -9/Mines | Met 8R-AWN 428 | -9/Mines | Lost 6 parts (2p3n1w) 503 | -9/Mines | Discovered new exit (range 5) 507 | -9/Mines | Entered Exiles 536 | -9/Exiles | Welcomed by 8R-AWN 555 | -9/Exiles | Met EX-HEX 608 | -9/Exiles | Met EX-BIN 624 | -9/Exiles | Aligned with FarCom system 625 | -9/Exiles | Given EX-Vault access code 655 | -9/Exiles | Opened EX-Vault 660 | -9/Exiles | Found Prototype Device 685 | -9/Exiles | Warned to stay clear of 0b10 Research branches 718 | -9/Exiles | Met EX-DEC 770 | -9/Exiles | Discovered new exit (range 14) 784 | -9/Exiles | Left Exiles lab with Skeleton Box 784 | -9/Exiles | Entered Mines 988 | -8/Mines | Discovered new exit (range 8) 1003 | -8/Mines | Entered Materials 1003 | -8/Materials | Evolved 2 slots: Propulsion x1, Utility x1 1004 | -8/Materials | Identified exit to Factory 1240 | -8/Materials | Core integrity fell below 50% 1247 | -8/Materials | Lost 6 parts (4n2w) 1247 | -8/Materials | Core integrity fell below 20% 1248 | -8/Materials | Destroyed by G-47 Trooper with Particle Gun Last Messages --------------- 01183_ Dropped Heat Sink. 01183_ U-05 Engineer lays Concrete. 01186_ K-01 Serf collects debris. 01186_ U-05 Engineer lays Concrete. 01189_ O-16 Technician: "IFF HANDSHAKE FAILED. SECURING TERMINAL." 01190_ K-01 Serf collects debris. 01194_ ALERT: Hostiles spotted, dispatching reinforcements to Terminal M010. 01195_ Aluminum Leg destroyed. 01197_ K-01 Serf collects debris. 01208_ Lgt. Treads destroyed. 01216_ Med. Treads destroyed. 01217_ T-07 Excavator is excavating. 01220_ O-16 Technician: "IFF HANDSHAKE FAILED. SECURING TERMINAL." 01226_ O-16 Technician uses terminal to summon reinforcements. 01226_ ALERT: Hostiles spotted, dispatching reinforcements to Terminal M008. 01226_ O-16 Technician locks terminal. 01234_ T-07 Excavator is excavating. 01246_ Critical hit (Burn: +37). Map ----- +----------------------------------------------------+ | | | | | ????????????????????????????????????????????###### | | ????????????????????????????????????????????# | | ????????????????????????????????????????????# T "" | | ????????????????????????????????????????????# "" | | ??????????????????????????????????########### ! "" | | ??????????????????????????????????# * # | | ??????????????????????????????????# ###+## | | ??????????????????????????????????# + | | ??????????????????????????#####???# """"" # | | ?????????????????????????? #?????""""" # ### | | ?????????????????????????"" #???# """"" # #?? | | ??????????????????????? """ #???# + #?? | | ??????????????????????# """ #???# # #?? | | ??????????????????????# #???########### ##? | | ??????????????????????# """ #???????# # #? | | ??????????????????????# """ #????????# #? | | ??????????????????????# """ #????????# # #? | | ??????????????????????# #????????##### #? | | ??????????????????????# #????????????### ##? | | ??????????????????????# #??????????????# ### | | ???????????###+#############+################# | | ?????????? a g g g g b | | ?????????? g g g | | ?????????? @ g | | ??????????????##############;#############+### | | ?????????????????????????? #?????????? ?## | | ????????????????????????? #?????????? ??# | | ???????????????????????? #????????? ?# | | ?????????????????????? #????????? ?# | | ??????????????Y??????# ! #???????? ## | | ?????????????????????# #???????? ## | | ?????????????????????# #??????? ! ## | | ?????????????????????# #??????? ## | | ?????????????????????# #?????? ## | | ?????????????????????##########???############# | | ??????????????????????????????????# | | ??????????????????????????????????# | | ??????????????????????????????????#=== === | | ??????????????????????????????????#=== === | | ??????????????????????????????????#=== == # | | ??????????????????????????????????# # | | ??????????????????????????????????# # | | ??????????????????????????????????# [ ! # | | ??????????????????????????????????# # | | ??????????????????????????????????# """ """ # | | ??????????????????????????????????# " """ # | | ??????????????????????????????????# "" # | | ??????????????????????????????????# # | +----------------------------------------------------+ Best States ------------- Heat Dissipation 41 Energy Generation 10 Energy Capacity 250 Matter Stores 300 Matter Capacity 300 Sight Range 16 Terrain Scan Density 10 Evasion (%) 55 Melee Accuracy 6 Recoil Reduction 2 Item Schematics ----------------- None Robot Schematics ------------------ None Fabricated ------------ Nothing Alien Tech Used ----------------- None Achievements -------------- None Challenges ------------ None Game ------ Seed FlightVariableGreatsword Manual? 0 Play Time 00:17:19 Cumulative 49.2 hours Start 2023.10.21 @ 21:30:36 End 2023.10.21 @ 21:47:49 Sessions 1 Manual Loads 0 Difficulty Rogue Special Mode None Game No. 98 Rogue 98 Adventurer 0 Explorer 0 Win Type - Total 2 Types 2/0/0/0/0/0/0/0/0 Lore% 42 Gallery% 42 Achievement% 33 Wizard Run 0 Options --------- ASCII 1 Keyboard 1 Movement Vi Keybinds 1 Fullscreen 1 Font 18/SmallcapsGlow Map View 76x50 Tactical HUD 1 Map Filters NONE Filters NONE Steam 1 RUN: 4bed8f55-5273-4699-8e20-1bd577dbb03a